bitfinex-derivatives/quotes_BTCF0:USTF0_20210109
["timestamp","ask_amount","ask_price","bid_price","bid_amount"]
[1610205837945,0.22843608,40461.0,40460.0,0.13632608]
[1610205838147,0.09211,40461.0,40460.0,0.13632608]
[1610205838349,3.8682,40481.0,40460.0,0.14407312]
[1610205838747,3.8682,40481.0,40461.0,0.00774701]
[1610205839953,3.8682,40481.0,40470.0,0.13632608]
[1610205840154,0.08184,40484.0,40470.0,0.13632608]
[1610205840351,3.7355,40497.0,40470.0,0.13632608]
[1610205840552,3.7355,40497.0,40471.0,0.00020476]
[1610205841956,0.13632608,40472.0,40471.0,0.00020476]
[1610205842354,0.20984608,40472.0,40471.0,0.00020476]
[1610205847861,0.20984608,40472.0,40471.0,0.00774598]
[1610205849062,0.20984608,40472.0,40460.0,0.00774632]
[1610205849262,0.20984608,40472.0,40471.0,0.00020474]
[1610205849463,0.20984608,40472.0,40461.0,0.00774674]
[1610205849864,0.20984608,40472.0,40471.0,0.00020476]
[1610205850067,0.20984608,40472.0,40462.0,0.00774725]
[1610205850267,0.20984608,40472.0,40471.0,0.00020478]
[1610205850667,0.20984608,40472.0,40463.0,0.00774755]
[1610205850867,0.20984608,40472.0,40471.0,0.00020478]
[1610205851067,0.20984608,40472.0,40464.0,0.00774772]
[1610205851268,0.20984608,40472.0,40471.0,0.00020478]
[1610205851674,0.20984608,40472.0,40460.0,0.00774794]
[1610205851870,3.09224608,40472.0,40471.0,0.00020478]
[1610205852068,3.09224608,40472.0,40461.0,0.00774816]
[1610205852468,0.20984608,40472.0,40452.0,0.00774876]
[1610205852668,0.20984608,40472.0,40462.0,0.00020482]
[1610205852669,3.373,40464.0,40462.0,0.00020482]
[1610205852868,3.373,40464.0,40453.0,0.00774945]
[1610205853269,3.373,40464.0,40439.0,0.00774955]
[1610205853469,3.373,40464.0,40454.0,0.00020484]
[1610205853669,3.373,40464.0,40440.0,0.00774974]
[1610205853970,3.373,40464.0,40437.0,3.0548]
[1610205853971,3.373,40464.0,40455.0,0.00020484]
[1610205854169,3.373,40464.0,40441.0,0.0077499]
[1610205854569,3.373,40464.0,40438.0,0.00774995]
[1610205854769,3.373,40464.0,40442.0,0.00774998]
[1610205854971,3.373,40464.0,40439.0,0.00774998]
[1610205855271,3.373,40464.0,40438.0,0.00775011]
[1610205855673,3.373,40464.0,40440.0,0.00775015]
[1610205855872,3.373,40464.0,40439.0,0.00775033]
[1610205856071,0.13632608,40440.0,40437.0,3.0548]
[1610205856472,0.25412608,40440.0,40437.0,3.0548]
[1610205856672,0.25412608,40440.0,40438.0,0.00775036]
[1610205861177,0.25412608,40440.0,40437.0,3.0548]
[1610205861378,0.25412608,40440.0,40439.0,0.00775037]
[1610205861977,0.25412608,40440.0,40439.0,0.0155007]
[1610205867085,3.93612608,40440.0,40439.0,0.0155007]
[1610205867485,3.93612608,40440.0,40439.0,0.0079552]
[1610205867686,5.43612608,40440.0,40439.0,0.0079552]
[1610205867886,3.93612608,40440.0,40439.0,0.0079552]
[1610205869288,3.93612608,40440.0,40439.0,0.00775037]
[1610205869488,3.93612608,40440.0,40408.0,3.0493]
[1610205869787,1.75412608,40440.0,40400.0,2.53419535]
[1610205869991,2.8648,40415.0,40400.0,2.53419535]
[1610205870188,2.8648,40415.0,40409.0,0.00020417]
[1610205870389,0.10426,40415.0,40401.0,0.0002042]
[1610205870591,3.8906,40410.0,40398.0,2.5345852]
[1610205870791,3.8906,40410.0,40402.0,0.00020423]
[1610205871190,3.8906,40410.0,40399.0,0.00020423]
[1610205871391,3.8906,40410.0,40403.0,0.00020423]
[1610205871591,3.8906,40410.0,40400.0,0.00020423]
[1610205871991,3.8906,40410.0,40404.0,0.00020425]
[1610205872192,0.13632608,40405.0,40401.0,0.00020423]
[1610205872393,0.4169,40402.0,40386.0,2.53011838]
[1610205872593,0.24668608,40405.0,40385.0,2.5279693]
[1610205872795,0.24668608,40405.0,40402.0,0.00020424]
[1610205872997,3.25588608,40405.0,40386.0,0.00020424]
[1610205873195,3.25588608,40405.0,40403.0,0.00020424]
[1610205873597,3.25588608,40405.0,40387.0,0.00020394]
[1610205873797,3.25588608,40405.0,40383.0,2.52616741]
[1610205873998,3.25588608,40405.0,40388.0,0.00020395]
[1610205874198,0.13632608,40389.0,40384.0,0.00020395]
[1610205874599,0.21143608,40389.0,40382.0,0.00020395]
[1610205874800,0.21143608,40389.0,40385.0,0.00020395]
[1610205875003,0.21143608,40389.0,40383.0,0.00020397]
[1610205875401,0.21143608,40389.0,40386.0,0.00020397]
[1610205875605,0.21143608,40389.0,40384.0,0.00020397]
[1610205875801,3.11956,40405.0,40381.0,0.39742608]
[1610205876004,0.09177,40389.0,40381.0,0.39742608]
[1610205876203,0.09177,40389.0,40388.0,0.13632608]
[1610205878207,0.22809608,40389.0,40388.0,0.13632608]
[1610205878608,0.09177,40389.0,40388.0,0.13632608]
[1610205879007,0.11036,40405.0,40388.0,0.13632608]
[1610205879408,3.165,40414.0,40388.0,0.13632608]
[1610205880208,3.165,40414.0,40398.0,0.13632608]
[1610205880609,3.165,40414.0,40384.0,3.4081]
[1610205882210,0.10426,40415.0,40403.0,0.13632608]
[1610205882411,1.0,40431.0,40403.0,0.13632608]
[1610205882812,1.0,40431.0,40409.0,3.9414]
[1610205883312,3.3838,40452.0,40409.0,3.9414]
[1610205884313,3.3838,40452.0,40422.0,0.13632608]
[1610205884917,0.2898,40476.0,40422.0,0.13632608]
[1610205885317,1.0,40455.0,40427.0,3.3919]
[1610205885518,1.09112,40455.0,40422.0,0.13632608]
[1610205886317,0.13632608,40423.0,40422.0,0.13632608]
[1610205886521,0.24634608,40423.0,40422.0,0.13632608]
[1610205887016,0.24634608,40423.0,40418.0,2.8941]
[1610205888520,0.24634608,40423.0,40415.0,0.13632608]
[1610205889221,0.24634608,40423.0,40408.0,3.726]
[1610205889422,0.24634608,40423.0,40385.0,2.51991622]
[1610205889620,0.24634608,40423.0,40409.0,0.0002041]
[1610205889821,0.24634608,40423.0,40387.0,3.3751]
[1610205890223,0.11002,40423.0,40404.0,0.13632608]
[1610205890622,0.11002,40423.0,40405.0,0.00020411]
[1610205891625,0.09112,40455.0,40405.0,0.00020411]
[1610205891825,2.8332,40444.0,40405.0,3.09420411]
[1610205892023,2.91177,40444.0,40405.0,3.09420411]
[1610205892225,2.91177,40444.0,40406.0,0.00020411]
[1610205892724,0.07857,40444.0,40406.0,0.00020411]
[1610205892923,3.6773,40425.0,40406.0,0.00020411]
[1610205893224,3.6773,40425.0,40405.0,0.00020411]
[1610205893424,0.07808,40425.0,40405.0,0.00020411]
[1610205893626,0.07808,40425.0,40407.0,0.00020411]
[1610205893826,0.07808,40425.0,40406.0,0.00020411]
[1610205894025,0.07808,40425.0,40408.0,0.00020411]
[1610205894228,0.07808,40425.0,40409.0,0.13632608]
[1610205894626,0.07808,40425.0,40410.0,0.00020411]
[1610205896225,0.13632608,40411.0,40410.0,0.00020411]
[1610205896426,0.21242608,40411.0,40410.0,0.00020411]
[1610205899630,0.34891547,40411.0,40396.0,0.00775585]
[1610205899830,0.34891547,40411.0,40410.0,0.00020409]
[1610205900030,0.34891547,40411.0,40397.0,0.00020409]
[1610205900230,0.13632608,40398.0,40397.0,0.13653017]
[1610205900431,0.13632608,40398.0,40397.0,0.13632608]
[1610205900631,0.24861608,40398.0,40397.0,0.1440823]
[1610205901232,0.24861608,40398.0,40397.0,0.00775622]
[1610205901431,0.11229,40398.0,40397.0,0.00775622]
[1610205901633,0.11229,40398.0,40396.0,0.00775627]
[1610205902232,0.11229,40398.0,40397.0,0.13632608]
[1610205902633,0.11229,40398.0,40397.0,4.20692608]
[1610205902833,0.11229,40398.0,40397.0,4.21468253]
[1610205903135,0.21258939,40411.0,40397.0,4.21468253]
[1610205903534,0.21258939,40411.0,40398.0,0.00775503]
[1610205904235,0.21258939,40411.0,40410.0,0.13632608]
[1610205904436,0.21258939,40411.0,40410.0,0.63532608]
[1610205904637,0.21258939,40411.0,40410.0,0.6430809]
[1610205906138,0.21258939,40411.0,40410.0,0.66576545]
[1610205906738,0.13632608,40424.0,40410.0,0.66576545]
[1610205906938,0.13632608,40424.0,40410.0,0.6430809]
[1610205907141,0.13632608,40424.0,40411.0,0.0077536]
[1610205908340,0.13632608,40424.0,40423.0,0.13632608]
[1610205908842,0.07808,40425.0,40423.0,4.20718015]
[1610205909040,1.0,40455.0,40423.0,4.20718015]
[1610205909444,0.2992,40456.0,40424.0,0.00775371]
[1610205909642,0.2992,40456.0,40432.0,3.6743]
[1610205909842,1.0,40465.0,40432.0,3.6743]
[1610205910044,1.0,40465.0,40433.0,0.000204]
[1610205910243,2.956,40458.0,40433.0,0.000204]
[1610205910444,2.956,40458.0,40439.0,0.13632608]
[1610205910645,3.02833,40458.0,40439.0,0.13632608]
[1610205910846,3.02833,40458.0,40440.0,0.000204]
[1610205911347,0.07233,40458.0,40440.0,0.000204]
[1610205912448,0.07233,40458.0,40445.0,0.13632608]
[1610205913050,0.07233,40458.0,40446.0,0.000204]
[1610205914451,0.13632608,40447.0,40446.0,0.000204]
[1610205914853,0.21514608,40447.0,40446.0,0.000204]
[1610205917754,0.07882,40447.0,40446.0,0.000204]
[1610205917955,0.07882,40447.0,40446.0,3.381304]
[1610205920058,0.07233,40458.0,40446.0,3.381304]
[1610205920258,1.0,40491.0,40446.0,3.381304]
[1610205920458,1.0,40491.0,40463.0,0.13632608]
[1610205920657,1.0,40491.0,40447.0,0.0002039]
[1610205920858,0.41068,40483.0,40464.0,0.0002039]
[1610205921261,0.41068,40483.0,40451.0,0.0002039]
[1610205921458,1.0,40477.0,40450.0,3.4301]
[1610205922059,1.0,40477.0,40451.0,0.0002039]
[1610205922462,1.0,40477.0,40454.0,0.13632608]
[1610205922960,1.0,40477.0,40455.0,0.0002039]
[1610205923361,0.41068,40483.0,40455.0,0.0002039]
[1610205924163,0.41068,40483.0,40456.0,3.995]
[1610205924362,0.13632608,40457.0,40456.0,3.995]
[1610205924561,0.24281608,40457.0,40456.0,3.995]
[1610205924964,0.24281608,40457.0,40456.0,3.99520389]
[1610205926364,0.10649,40457.0,40456.0,3.99520389]
[1610205927768,0.10649,40457.0,40456.0,4.00274659]
[1610205929367,0.11308,40483.0,40456.0,3.99520389]
[1610205929569,0.10747,40457.0,40456.0,3.99520378]
[1610205934479,0.11308,40483.0,40456.0,3.99520378]
[1610205934680,0.07303,40457.0,40456.0,3.99520378]
[1610205934880,0.07303,40457.0,40456.0,3.995]
[1610205935281,0.07303,40457.0,40456.0,3.99520116]
[1610205939588,0.11308,40483.0,40456.0,3.99520116]
[1610205939785,2.9368,40499.0,40456.0,3.99520116]
[1610205939985,2.9368,40499.0,40456.0,3.99520114]
[1610205940185,2.9368,40499.0,40457.0,0.00020114]
[1610205940585,2.9368,40499.0,40472.0,0.13632608]
[1610205940985,2.9368,40499.0,40472.0,0.61872608]
[1610205941185,1.1556,40519.0,40472.0,0.13632608]
[1610205941385,0.1556,40519.0,40472.0,0.13632608]
[1610205941585,2.7754,40506.0,40472.0,0.13632608]
[1610205941785,2.87056,40506.0,40472.0,0.13632608]
[1610205942387,0.0003017,40505.0,40472.0,0.13632608]
[1610205942584,0.13632608,40483.0,40481.0,0.13632608]
[1610205942784,0.13632608,40483.0,40454.0,3.4333]
[1610205943385,0.13632608,40483.0,40455.0,0.00020117]
[1610205944587,3.5542,40486.0,40463.0,0.13632608]
[1610205945789,3.5542,40486.0,40449.0,3.2885]
[1610205945988,3.66878,40486.0,40449.0,3.2885]
[1610205946189,3.66878,40486.0,40450.0,0.00020089]
[1610205946689,0.13632608,40451.0,40450.0,0.00020089]
[1610205946890,0.25459608,40451.0,40450.0,0.00020089]
[1610205947091,0.25459608,40451.0,40431.0,2.962]
[1610205947092,0.25459608,40451.0,40447.0,0.00020091]
[1610205947491,0.25459608,40451.0,40432.0,0.00020093]
[1610205948691,0.11827,40451.0,40436.0,0.13632608]
[1610205949092,0.11827,40451.0,40437.0,0.00020093]
[1610205950594,0.11827,40451.0,40450.0,0.13632608]
[1610205950994,0.11827,40451.0,40450.0,0.13652701]
[1610205951894,0.2941,40484.0,40450.0,0.13652701]
[1610205952094,3.4232,40470.0,40450.0,0.13652701]
[1610205952295,3.49969,40470.0,40451.0,0.00020093]
[1610205952697,0.13632608,40452.0,40451.0,0.00020093]
[1610205953199,0.23394608,40452.0,40451.0,0.00020093]
[1610205955600,0.09762,40452.0,40451.0,0.00020093]
[1610205956298,0.09762,40452.0,40451.0,0.00774458]
[1610205958199,0.13632608,40464.0,40451.0,0.00774458]
[1610205958401,0.07649,40470.0,40451.0,0.00774458]
[1610205958602,2.9576,40511.0,40464.0,3.1787]
[1610205958800,0.13632608,40475.0,40469.0,0.13632608]
[1610205959002,0.25524608,40475.0,40464.0,3.1787]
[1610205959199,0.25524608,40475.0,40470.0,0.00020088]
[1610205959400,0.25524608,40475.0,40465.0,0.00020088]
[1610205960500,0.25524608,40475.0,40465.0,0.00774265]
[1610205960700,0.11892,40475.0,40473.0,0.13632608]
[1610205961103,0.11892,40475.0,40474.0,0.00020085]
[1610205962802,0.25524608,40475.0,40474.0,0.00020085]
[1610205963401,0.11892,40475.0,40474.0,0.00020085]
[1610205963902,0.11892,40475.0,40474.0,0.0077421]
[1610205964302,2.9576,40511.0,40474.0,0.0077421]
[1610205964504,1.0,40523.0,40474.0,0.0077421]
[1610205964704,1.0,40523.0,40488.0,0.13632608]
[1610205965105,1.0,40523.0,40483.0,3.2804]
[1610205965305,0.1556,40526.0,40489.0,0.00020081]
[1610205965506,0.00030163,40522.0,40484.0,0.00020081]
[1610205965705,0.11315,40522.0,40484.0,0.00020081]
[1610205966108,0.00030163,40521.0,40484.0,0.00020081]
[1610205966705,0.13632608,40485.0,40484.0,0.13652689]
[1610205966906,0.25109608,40485.0,40484.0,0.13652689]
[1610205967306,0.25109608,40485.0,40484.0,0.14406763]
[1610205967507,0.25109608,40485.0,40484.0,0.00774155]
[1610205967707,0.25109608,40485.0,40484.0,0.00020081]
[1610205968207,0.25109608,40485.0,40482.0,0.00020081]
[1610205968808,0.25109608,40485.0,40483.0,0.13632608]
[1610205969208,0.25109608,40485.0,40484.0,0.00020081]
[1610205977722,0.25109608,40485.0,40482.0,0.00020081]
[1610205977922,0.25109608,40485.0,40484.0,0.00020081]
[1610205978122,0.25109608,40485.0,40483.0,0.00020078]
[1610205978523,0.25109608,40485.0,40482.0,0.00020078]
[1610205978723,0.25109608,40485.0,40484.0,0.00020078]
[1610205978922,0.25109608,40485.0,40483.0,0.00020078]
[1610205979223,0.25109608,40485.0,40482.0,0.00020078]
[1610205979423,3.1563,40484.0,40482.0,0.00020078]
[1610205979623,3.1563,40484.0,40464.0,3.3859]
[1610205979823,3.1563,40484.0,40483.0,0.00020113]
[1610205980023,3.1563,40484.0,40465.0,0.00754053]
[1610205980024,3.1563,40484.0,40465.0,0.00774166]
[1610205980924,3.1563,40484.0,40466.0,0.13632608]
[1610205981327,3.1563,40484.0,40467.0,0.00774244]
[1610205981725,3.1563,40484.0,40467.0,0.00020115]
[1610205981927,3.1563,40484.0,40468.0,0.00774253]
[1610205982126,3.1563,40484.0,40468.0,0.00020115]
[1610205982528,3.1563,40484.0,40469.0,0.00020115]
[1610205982726,3.1563,40484.0,40468.0,0.00020115]
[1610205982925,0.13632608,40470.0,40467.0,0.00020117]
[1610205983326,0.24501608,40470.0,40467.0,0.00020117]
[1610205983527,0.24501608,40470.0,40467.0,0.00774258]
[1610205984028,0.24501608,40470.0,40467.0,0.00020117]
[1610205984228,0.24501608,40470.0,40468.0,0.00020117]
[1610205984527,0.24501608,40470.0,40466.0,0.13632608]
[1610205984528,0.24501608,40470.0,40467.0,0.00774266]
[1610205986831,0.24501608,40470.0,40468.0,4.0559]
[1610205987236,0.10869,40470.0,40469.0,0.00774203]
[1610205988434,0.11477,40485.0,40469.0,0.00774203]
[1610205988634,0.2964,40508.0,40469.0,0.00774203]
[1610205988635,3.1285,40497.0,40469.0,0.00774203]
[1610205988833,0.2964,40508.0,40481.0,0.13632608]
[1610205989035,3.9892,40507.0,40481.0,0.13632608]
[1610205989237,4.08582,40507.0,40482.0,0.00774173]
[1610205989836,4.08582,40507.0,40476.0,0.00774173]
[1610205990036,3.9207,40492.0,40483.0,0.00774182]
[1610205990236,4.02408,40492.0,40483.0,0.00774182]
[1610205990436,4.02408,40492.0,40477.0,0.0077422]
[1610205990638,4.02408,40492.0,40484.0,0.00020127]
[1610205990836,0.13632608,40485.0,40484.0,0.00020127]
[1610205991039,0.13632608,40485.0,40478.0,0.00774276]
[1610205991237,3.3378,40479.0,40464.0,0.00774315]
[1610205991439,3.43059,40479.0,40458.0,3.4086]
[1610205991741,3.43059,40479.0,40459.0,0.02924514]
[1610205992337,3.43059,40479.0,40459.0,0.00774321]
[1610205992538,3.43059,40479.0,40460.0,0.00774378]
[1610205992939,0.13632608,40461.0,40460.0,0.00774378]
[1610205993139,0.25247608,40461.0,40459.0,0.00774382]
[1610205993338,0.25247608,40461.0,40460.0,0.00774368]
[1610205993841,0.25247608,40461.0,40459.0,0.00774406]
[1610205994243,0.25247608,40461.0,40460.0,0.00774421]
[1610205994441,0.78557608,40461.0,40460.0,0.00774421]
[1610205994643,0.78557608,40461.0,40448.0,0.02925017]
[1610205994842,0.13632608,40449.0,40448.0,0.02925017]
[1610205995042,0.24338608,40449.0,40444.0,0.2816]
[1610205995244,0.24338608,40449.0,40448.0,0.00774449]
[1610205995443,0.24338608,40449.0,40445.0,0.00774476]
[1610205995646,0.24338608,40449.0,40448.0,0.00020135]
[1610205995843,0.24338608,40449.0,40448.0,0.00774524]
[1610205996045,0.24338608,40449.0,40445.0,0.00774564]
[1610205996243,0.24338608,40449.0,40448.0,0.00020135]
[1610205996444,0.24338608,40449.0,40446.0,0.00020353]
[1610205996644,0.24338608,40449.0,40438.0,2.9053]
[1610205996844,0.24338608,40449.0,40439.0,0.00774842]
[1610205996845,0.10706,40449.0,40439.0,0.00774842]
[1610205997847,0.10706,40449.0,40439.0,0.00020353]
[1610205998046,0.10706,40449.0,40447.0,3.1528]
[1610205998446,0.10706,40449.0,40448.0,0.00020355]
[1610205998847,0.24338608,40449.0,40448.0,0.00020355]
[1610205999646,0.24338608,40449.0,40438.0,0.00020355]
[1610206000047,0.24338608,40449.0,40433.0,0.00020355]
[1610206000947,0.13632608,40434.0,40433.0,0.00020355]
[1610206001349,0.25585608,40434.0,40433.0,0.00020355]
[1610206002052,0.11953,40434.0,40433.0,3.59260355]
[1610206002950,0.11953,40434.0,40433.0,3.6001488]
[1610206004151,0.11953,40434.0,40433.0,0.0077488]
[1610206004352,0.0806,40434.0,40433.0,2.54573623]
[1610206004752,0.0806,40434.0,40433.0,0.0077488]
[1610206004951,0.21692608,40434.0,40433.0,0.0077488]
[1610206005152,0.21692608,40434.0,40430.0,0.0077488]
[1610206005553,0.21692608,40434.0,40429.0,0.00020358]
[1610206005753,0.21692608,40434.0,40431.0,0.00020358]
[1610206005952,0.21692608,40434.0,40430.0,0.00020358]
[1610206006352,0.21692608,40434.0,40429.0,0.0077491]
[1610206006553,0.21692608,40434.0,40431.0,0.00020358]
[1610206006753,0.21692608,40434.0,40430.0,0.00020358]
[1610206007157,0.21692608,40434.0,40432.0,0.00020358]
[1610206007354,0.21692608,40434.0,40431.0,0.00020358]
[1610206007554,0.21692608,40434.0,40433.0,0.00020358]
[1610206007954,0.21692608,40434.0,40432.0,0.00020358]
[1610206008156,0.21692608,40434.0,40433.0,0.00020358]
[1610206008756,0.21692608,40434.0,40429.0,0.0077492]
[1610206008957,0.21692608,40434.0,40433.0,0.13652966]
[1610206009158,0.21692608,40434.0,40433.0,0.13632608]
[1610206009356,0.21692608,40434.0,40433.0,0.14407471]
[1610206012260,0.21692608,40434.0,40433.0,3.61267471]
[1610206012458,0.0806,40434.0,40433.0,3.61267471]
[1610206012858,0.59736139,40449.0,40433.0,3.61267471]
[1610206013058,0.59736139,40449.0,40448.0,0.13632608]
[1610206013459,0.59736139,40449.0,40448.0,0.13652962]
[1610206013659,0.59736139,40449.0,40448.0,0.00020354]
[1610206014259,0.59736139,40449.0,40435.0,0.0077478]
[1610206014461,0.59736139,40449.0,40448.0,0.00020354]
[1610206014660,0.59736139,40449.0,40436.0,0.00774807]
[1610206015060,0.59736139,40449.0,40448.0,0.00020354]
[1610206015260,0.59736139,40449.0,40437.0,0.00774819]
[1610206015461,0.59736139,40449.0,40448.0,0.00020354]
[1610206015662,0.59736139,40449.0,40438.0,0.00020354]
[1610206015862,0.59736139,40449.0,40438.0,0.00774829]
[1610206016062,0.59736139,40449.0,40436.0,0.00774829]
[1610206016263,0.59736139,40449.0,40439.0,0.00774829]
[1610206016563,0.59736139,40449.0,40437.0,0.00774829]
[1610206016763,0.59736139,40449.0,40440.0,0.00774829]
[1610206016963,0.13632608,40441.0,40440.0,0.00774829]
[1610206017168,0.13632608,40441.0,40438.0,0.00774839]
[1610206017365,0.13632608,40441.0,40440.0,0.0077485]
[1610206017564,0.13632608,40441.0,40439.0,0.00774841]
[1610206017963,0.13632608,40441.0,40440.0,0.00774841]
[1610206018363,0.13632608,40441.0,40436.0,0.00774836]
[1610206018765,0.13632608,40441.0,40440.0,0.00774833]
[1610206019065,0.13632608,40441.0,40437.0,0.00774822]
[1610206019265,0.59736139,40449.0,40440.0,0.00774805]
[1610206019465,0.59736139,40449.0,40438.0,0.00774794]
[1610206019666,0.59736139,40449.0,40441.0,0.00774777]
[1610206020066,0.59736139,40449.0,40439.0,0.0077478]
[1610206020266,0.59736139,40449.0,40442.0,0.00774797]
[1610206020466,0.59736139,40449.0,40440.0,0.00774803]
[1610206020868,0.59736139,40449.0,40443.0,0.00774838]
[1610206021066,0.13632608,40444.0,40441.0,0.00774891]
[1610206021266,0.13632608,40444.0,40427.0,0.02254689]
[1610206021667,0.13632608,40444.0,40442.0,0.00774895]
[1610206021867,0.13632608,40444.0,40427.0,0.03029579]
[1610206022068,0.13632608,40444.0,40443.0,0.00774892]
[1610206022267,0.13632608,40444.0,40428.0,0.00774892]
[1610206022470,0.13632608,40444.0,40433.0,3.5039]
[1610206022869,0.13632608,40444.0,40434.0,0.03029611]
[1610206023068,0.13632608,40435.0,40434.0,0.03029611]
[1610206023269,0.24359608,40435.0,40434.0,0.03029611]
[1610206023469,0.24359608,40435.0,40434.0,0.00774899]
[1610206023668,0.24359608,40435.0,40434.0,0.03029637]
[1610206026272,0.24359608,40435.0,40434.0,0.03029658]
[1610206037981,0.24359608,40435.0,40429.0,0.00774942]
[1610206038182,0.24359608,40435.0,40434.0,0.00774957]
[1610206038481,0.24359608,40435.0,40430.0,0.00774957]
[1610206038682,0.24359608,40435.0,40434.0,0.00774957]
[1610206039082,0.24359608,40435.0,40431.0,0.00774961]
[1610206039284,0.24359608,40435.0,40434.0,0.00775066]
[1610206039483,0.24359608,40435.0,40432.0,0.00775109]
[1610206039884,0.24359608,40435.0,40434.0,0.00775114]
[1610206040083,0.24359608,40435.0,40433.0,0.00775134]
[1610206040287,0.24359608,40435.0,40434.0,0.00020364]
[1610206040885,0.24359608,40435.0,40408.0,0.03031029]
[1610206041087,0.13632608,40409.0,40408.0,0.0225587]
[1610206041485,0.13632608,40409.0,40406.0,0.02255902]
[1610206041685,0.13632608,40409.0,40408.0,0.0077517]
[1610206041886,0.13632608,40409.0,40407.0,0.00775168]
[1610206042085,0.13632608,40409.0,40408.0,0.00775163]
[1610206042386,0.13632608,40409.0,40406.0,2.54036547]
[1610206042791,0.13632608,40409.0,40408.0,0.00775151]
[1610206042987,0.13632608,40409.0,40407.0,0.03030978]
[1610206043187,0.13632608,40409.0,40408.0,0.00775151]
[1610206043788,0.13632608,40409.0,40406.0,0.03030971]
[1610206043988,0.13632608,40409.0,40408.0,0.00775148]
[1610206044188,0.13632608,40409.0,40407.0,0.00775153]
[1610206044589,0.13632608,40409.0,40408.0,2.9024]
[1610206044791,0.13632608,40409.0,40408.0,2.91015151]
[1610206044990,0.08467,40414.0,40411.0,0.13632608]
[1610206045193,0.08467,40414.0,40413.0,0.13632608]
[1610206045590,0.08467,40414.0,40413.0,0.14407721]
[1610206046189,0.08467,40414.0,40413.0,0.14407703]
[1610206046390,0.08467,40414.0,40413.0,0.15162424]
[1610206046592,3.5222,40432.0,40413.0,2.69241435]
[1610206046793,3.5222,40432.0,40413.0,3.29207005]
[1610206046992,3.5222,40432.0,40414.0,0.03030641]
[1610206047192,0.13632608,40415.0,40414.0,0.03030641]
[1610206047392,0.13632608,40415.0,40414.0,2.5718595]
[1610206047592,0.23603608,40415.0,40414.0,2.5718595]
[1610206047792,0.09971,40415.0,40414.0,2.5718595]
[1610206047993,0.10727,40435.0,40416.0,0.13632608]
[1610206048193,0.10706,40449.0,40416.0,0.13632608]
[1610206048392,3.7688,40452.0,40417.0,0.00775054]
[1610206048592,3.7688,40452.0,40417.0,2.54841843]
[1610206049091,3.7688,40452.0,40425.0,0.13632608]
[1610206049291,3.7688,40452.0,40425.0,0.69252608]
[1610206049691,3.7688,40452.0,40426.0,0.00775024]
[1610206049892,1.5,40485.0,40426.0,0.00775024]
[1610206050093,3.529,40472.0,40433.0,3.6302]
[1610206050495,3.529,40472.0,40434.0,0.00775013]
[1610206050893,0.00030186,40471.0,40434.0,0.00775013]
[1610206051095,0.13632608,40435.0,40434.0,0.00775013]
[1610206051296,0.23832608,40435.0,40434.0,0.00775013]
[1610206059003,0.102,40435.0,40434.0,0.00775013]
[1610206059202,0.09023,40435.0,40434.0,0.00775013]
[1610206059404,0.09023,40435.0,40434.0,0.02911254]
[1610206064608,0.13632608,40441.0,40434.0,0.02911254]
[1610206065212,0.13632608,40441.0,40440.0,0.13632608]
[1610206065411,0.13632608,40441.0,40440.0,0.66032608]
[1610206065814,0.13632608,40441.0,40440.0,0.66807209]
[1610206066215,3.529,40472.0,40440.0,0.66807209]
[1610206066414,0.2986,40484.0,40440.0,0.14407209]
[1610206066613,0.2986,40484.0,40448.0,2.9588]
[1610206066814,0.00030179,40483.0,40448.0,2.9588]
[1610206067014,0.10124179,40483.0,40449.0,0.00020104]
[1610206067215,0.13632608,40450.0,40449.0,0.13652712]
[1610206067416,0.21319608,40450.0,40449.0,0.13652712]
[1610206067816,0.21319608,40450.0,40449.0,0.14407185]
[1610206068018,0.21319608,40450.0,40449.0,0.13652712]
[1610206068818,0.21319608,40450.0,40449.0,0.00020104]
[1610206069517,0.21319608,40450.0,40447.0,3.0446]
[1610206069717,0.21319608,40450.0,40449.0,0.00020104]
[1610206069917,0.21319608,40450.0,40448.0,0.00774579]
[1610206070118,0.21319608,40450.0,40449.0,0.00020104]
[1610206070518,0.21319608,40450.0,40448.0,0.00774579]
[1610206070718,0.21319608,40450.0,40449.0,0.00020104]
[1610206071318,0.21319608,40450.0,40449.0,0.13632608]
[1610206071518,0.21319608,40450.0,40449.0,0.13652712]
[1610206071717,0.21319608,40450.0,40449.0,0.14407204]
[1610206072619,0.21319608,40450.0,40449.0,3.56607204]
[1610206073618,0.21319608,40450.0,40449.0,3.58741886]
[1610206074919,0.21319608,40450.0,40449.0,3.56607204]
[1610206076522,0.21319608,40450.0,40449.0,3.58741684]
[1610206078124,0.07687,40450.0,40449.0,3.58741684]
[1610206078325,3.6485,40482.0,40449.0,3.58741684]
[1610206078829,3.6485,40482.0,40450.0,0.02908733]
[1610206079229,3.6485,40482.0,40459.0,0.13632608]
[1610206079428,3.6485,40482.0,40462.0,0.5393]
[1610206079828,3.6485,40482.0,40463.0,0.00754318]
[1610206080028,0.10094,40483.0,40463.0,0.00774416]
[1610206080228,3.3415,40498.0,40467.0,3.0616]
[1610206080629,3.3415,40498.0,40468.0,0.00020098]
[1610206081230,0.13632608,40469.0,40468.0,0.00020098]
[1610206081431,0.24345608,40469.0,40468.0,0.00020098]
[1610206082130,0.24345608,40469.0,40468.0,0.00774425]
[1610206082330,0.24345608,40469.0,40468.0,0.00020098]
[1610206082530,0.24345608,40469.0,40468.0,0.00774422]
[1610206084332,0.24345608,40469.0,40468.0,0.00020098]
[1610206084734,0.24345608,40469.0,40468.0,0.00774405]
[1610206085434,0.24345608,40469.0,40468.0,0.00020098]
[1610206086835,0.24345608,40469.0,40461.0,4.1014]
[1610206087036,0.24345608,40469.0,40468.0,0.00020098]
[1610206087236,0.24345608,40469.0,40462.0,0.00774404]
[1610206089242,0.13632608,40463.0,40462.0,0.00774404]
[1610206093349,0.24345608,40469.0,40462.0,0.00774404]
[1610206093549,0.24345608,40469.0,40468.0,3.3371]
[1610206093948,0.24345608,40469.0,40468.0,3.3448428]
[1610206094153,0.10713,40469.0,40468.0,3.3448428]
[1610206094549,4.1376,40506.0,40468.0,3.3448428]
[1610206094951,0.00030165,40505.0,40469.0,0.00774213]
[1610206095150,0.10218165,40505.0,40469.0,0.00774213]
[1610206095351,0.10218165,40505.0,40480.0,0.13632608]
[1610206095552,0.10218165,40505.0,40487.0,0.4357]
[1610206095753,0.00030165,40504.0,40489.0,3.0855]
[1610206096152,0.00030165,40504.0,40490.0,0.00020092]
[1610206097353,0.13632608,40491.0,40490.0,0.00020092]
[1610206097554,0.22240608,40491.0,40490.0,0.00020092]
[1610206098155,0.22240608,40491.0,40489.0,2.38578092]